bitfinex-derivatives/quotes_SOLF0:USTF0_20241010
["timestamp","ask_amount","ask_price","bid_price","bid_amount"]
[1728522904858,3.6019,138.94,138.92,11.08]
[1728522905165,0.12502,138.95,138.92,11.08]
[1728522905360,3.72662,138.95,138.92,11.08]
[1728522907856,0.12502,138.95,138.92,11.08]
[1728522908061,3.6017,138.94,138.92,11.08]
[1728522913267,11.20502,138.95,138.9,5.26]
[1728522913455,11.20502,138.95,138.9,16.34]
[1728522913767,3.6021,138.93,138.9,16.34]
[1728522913970,3.6021,138.93,138.9,19.9427]
[1728522914170,3.6021,138.93,138.91,11.08]
[1728522914957,5.38502,138.95,138.92,11.08]
[1728522915155,8.98652,138.95,138.93,11.08]
[1728522916371,3.72652,138.95,138.94,11.08]
[1728522916564,0.12502,138.95,138.94,11.08]
[1728522917162,0.12502,138.95,138.94,14.6817]
[1728522920867,0.12502,139.01,138.94,11.08]
[1728522921069,0.12502,139.01,139.0,11.08]
[1728522921270,0.12502,139.01,139.0,14.6801]
[1728522921658,0.12502,139.01,139.0,11.08]
[1728522922671,0.12502,139.01,139.0,14.6801]
[1728522926777,151.93956905,139.04,139.0,11.08]
[1728522926972,151.93956905,139.04,139.03,11.08]
[1728522927472,0.12502,139.07,139.03,14.6792]
[1728522927869,0.12502,139.07,139.05,11.08]
[1728522928176,0.12502,139.07,139.06,11.08]
[1728522930472,0.12502,139.07,139.06,14.6786]
[1728522932376,3.5977,139.1,139.07,3.5983]
[1728522932581,3.5977,139.1,139.09,11.08]
[1728522935877,11.08,139.1,139.04,1.4196]
[1728522936075,3.5981,139.08,139.05,11.08]
[1728522936781,11.08,139.09,139.05,11.08]
[1728522937279,11.08,139.08,139.04,11.08]
[1728522937480,3.5988,139.06,139.04,11.08]
[1728522942789,3.5988,139.06,139.05,11.08]
[1728522943889,3.5984,139.07,139.05,11.08]
[1728522944486,3.5982,139.08,139.06,11.08]
[1728522949090,11.08,139.1,139.06,11.08]
[1728522949899,3.5983,139.08,139.06,11.08]
[1728522950199,11.08,139.1,139.06,11.08]
[1728522951400,3.5983,139.08,139.06,11.08]
[1728522951600,11.08,139.1,139.03,6.6311]
[1728522951794,5.26,139.11,139.05,11.08]
[1728522951795,11.08,139.09,139.05,11.08]
[1728522951987,3.5988,139.06,139.05,11.08]
[1728522954800,3.5988,139.06,139.03,4.9704]
[1728522954991,3.5988,139.06,139.04,11.08]
[1728522958694,5.26,139.08,139.05,11.08]
[1728522959001,3.5984,139.07,139.05,11.08]
[1728522962301,5.26,139.08,139.06,14.6785]
[1728522962700,3.5979,139.09,139.06,14.6785]
[1728522963295,3.5974,139.11,139.08,3.5981]
[1728522963495,5.26,139.12,139.08,11.08]
[1728522963695,3.7414,139.13,139.09,11.08]
[1728522963696,5.38502,139.13,139.09,11.08]
[1728522963900,0.12502,139.13,139.11,11.08]
[1728522964197,0.12502,139.13,139.12,11.08]
[1728522966107,0.12502,139.13,139.1,11.08]
[1728522966301,0.12502,139.13,139.09,11.08]
[1728522966504,0.12502,139.13,139.08,5.26]
[1728522966505,3.5971,139.12,139.1,11.08]
[1728522966700,0.12502,139.13,139.1,11.08]
[1728522967408,3.72182,139.13,139.12,11.08]
[1728522968999,3.597,139.12,139.11,11.08]
[1728522969301,11.20502,139.13,139.09,11.08]
[1728522969716,3.5971,139.12,139.09,11.08]
[1728522970002,11.20502,139.13,139.09,11.08]
[1728522970205,3.5972,139.12,139.1,11.08]
[1728522972110,11.20502,139.13,139.05,7.9536]
[1728522972412,11.20502,139.13,139.08,11.08]
[1728522972998,3.5976,139.1,139.08,11.08]
[1728522973198,11.08,139.12,139.07,11.08]
[1728522973400,16.34,139.11,139.07,11.08]
[1728522973716,11.08,139.08,139.0,1.403]
[1728522973905,11.08,139.07,139.03,11.08]
[1728522974306,3.5987,139.06,139.02,11.08]
[1728522974507,5.26,139.08,139.01,3.72482]
[1728522974803,5.26,139.08,139.01,0.12502]
[1728522975003,3.5995,139.03,139.01,0.12502]
[1728522975201,5.26,139.08,139.01,0.12502]
[1728522976419,3.5993,139.04,139.01,0.12502]
[1728522978914,3.5985,139.07,139.02,20.8796]
[1728522979115,5.26,139.08,139.02,17.28]
[1728522979311,5.26,139.07,139.02,17.28]
[1728522979617,3.5987,139.06,139.02,17.28]
[1728522979921,5.26,139.07,139.02,17.28]
[1728522980417,3.5992,139.04,139.02,17.28]
[1728522981313,3.5992,139.04,139.01,0.12502]
[1728522984711,3.5992,139.04,139.01,3.72482]
[1728522985215,5.26,139.07,139.04,3.599]
[1728522985809,8.8585,139.07,139.04,3.599]
[1728522986413,3.5986,139.06,139.03,3.5993]
[1728522986815,3.5993,139.04,139.02,22.54]
[1728522987010,5.26,139.07,139.02,22.54]
[1728522987414,3.599,139.05,139.02,26.1396]
[1728522987616,5.26,139.1,139.04,17.28]
[1728522988015,3.5985,139.07,139.04,20.879]
[1728522988225,5.26,139.1,139.04,17.28]
[1728522990520,3.5985,139.07,139.04,17.28]
[1728522991716,5.26,139.1,139.04,17.28]
[1728522991921,3.5986,139.06,139.04,17.28]
[1728522993525,3.599,139.05,139.03,1.4155]
[1728522994519,3.599,139.05,139.03,12.4755]
[1728522995931,3.599,139.05,139.03,11.06]
[1728522997331,3.599,139.05,139.04,11.06]
[1728522997524,3.5984,139.07,139.04,14.6591]
[1728522997722,16.32,139.1,139.06,11.06]
[1728522998221,5.26,139.1,139.07,11.06]
[1728522999234,11.06,139.12,139.07,11.06]
[1728522999418,11.06,139.12,139.08,11.06]
[1728522999419,16.32,139.12,139.08,11.06]
[1728523000023,3.5973,139.11,139.08,11.06]
[1728523000224,16.32,139.12,139.08,11.06]
[1728523001031,3.5977,139.1,139.08,11.06]
[1728523003635,3.5981,139.08,139.06,11.06]
[1728523003934,11.06,139.08,139.05,1.3254]
[1728523004432,3.5985,139.07,139.05,12.3854]
[1728523004627,11.06,139.09,139.05,12.3854]
[1728523005528,3.5983,139.07,139.05,12.3854]
[1728523005833,11.06,139.09,139.05,12.3854]
[1728523006028,3.5986,139.06,139.05,12.3854]
[1728523006227,11.06,139.09,139.05,12.3854]
[1728523006733,3.5982,139.08,139.06,11.06]
[1728523006932,5.26,139.1,139.06,11.06]
[1728523007136,3.5981,139.09,139.06,14.6585]
[1728523007333,16.32,139.11,139.06,14.6585]
[1728523007639,3.5975,139.1,139.07,11.06]
[1728523007828,16.32,139.11,139.07,11.06]
[1728523009125,3.5986,139.07,139.05,12.3854]
[1728523009332,11.06,139.07,139.03,11.06]
[1728523010530,5.26,139.08,139.01,0.12502]
[1728523010531,3.5996,139.02,139.01,0.12502]
[1728523013542,19.9196,139.02,139.01,0.12502]
[1728523016543,8.8596,139.02,139.01,0.12502]
[1728523018541,3.5996,139.02,139.01,0.12502]
[1728523021343,3.5994,139.03,139.01,11.18502]
[1728523021537,5.26,139.04,139.01,0.12502]
[1728523022243,3.5995,139.03,139.01,0.12502]
[1728523023540,3.5996,139.02,139.01,0.12502]
[1728523023940,14.6596,139.02,139.01,0.12502]
[1728523024339,3.5996,139.02,139.01,0.12502]
[1728523024742,14.6596,139.02,139.01,0.12502]
[1728523026650,3.5996,139.02,139.01,0.12502]
[1728523030157,14.6596,139.02,139.01,0.12502]
[1728523032957,14.6596,139.02,138.95,5.38502]
[1728523032958,32.7,139.02,138.95,0.12502]
[1728523033257,14.6612,138.96,138.95,0.12502]
[1728523033460,5.26,139.0,138.95,11.18502]
[1728523033661,5.26,139.0,138.96,11.06]
[1728523033962,11.06,138.99,138.95,0.12502]
[1728523034165,11.06,138.99,138.95,11.18502]
[1728523034655,14.6604,138.99,138.95,11.18502]
[1728523035062,11.06,138.98,138.95,0.12502]
[1728523035456,5.26,138.97,138.95,0.12502]
[1728523035765,5.26,139.0,138.96,11.06]
[1728523036057,5.26,139.0,138.98,14.6606]
[1728523036267,16.32,139.01,138.98,14.6606]
[1728523037064,5.26,139.01,138.98,11.06]
[1728523037467,25.2393,139.04,138.99,11.06]
[1728523037468,11.06,139.04,138.99,11.06]
[1728523037661,5.26,139.03,139.0,11.06]
[1728523038057,5.26,139.03,139.02,14.6594]
[1728523039164,11.06,139.05,139.02,11.06]
[1728523039364,16.32,139.05,139.03,3.5993]
[1728523039566,16.32,139.05,139.02,11.06]
[1728523040563,5.26,139.05,139.03,3.5994]
[1728523040960,8.8589,139.05,139.01,3.5998]
[1728523041959,5.26,139.05,138.97,18.6295]
[1728523042568,5.26,139.05,138.99,17.28]
[1728523042767,5.26,139.05,139.03,3.5992]
[1728523043974,5.26,139.05,139.02,3.5995]
[1728523044864,5.26,139.05,139.03,3.5993]
[1728523045959,5.26,139.05,138.99,17.28]
[1728523046271,5.26,139.05,139.02,3.5995]
[1728523047162,8.8588,139.05,139.02,3.5995]
[1728523047564,8.8588,139.05,138.99,17.28]
[1728523047756,8.8588,139.05,139.01,3.5998]
[1728523050362,3.56462131,139.06,139.0,17.28]
[1728523050665,5.28,139.05,139.03,3.5992]
[1728523050857,5.28,139.06,139.01,17.28]
[1728523051058,5.28,139.06,139.04,3.5989]
[1728523051258,0.12502,139.07,139.01,18.5878]
[1728523051259,5.40502,139.07,139.01,18.5878]
[1728523052061,0.12502,139.07,139.01,18.5878]
[1728523052261,5.40502,139.07,139.01,18.5878]
[1728523052471,5.40502,139.07,139.02,1.4232]
[1728523052766,5.40502,139.07,139.03,3.5992]
[1728523053064,5.40502,139.07,139.03,17.28]
[1728523053662,0.12502,139.07,139.03,17.28]
[1728523054464,0.12502,139.07,139.06,3.5986]
[1728523055765,0.12502,139.07,139.06,4.9677]
[1728523055966,5.28,139.11,139.1,3.5975]
[1728523056569,5.28,139.12,139.1,3.5975]
[1728523056876,0.12502,139.13,139.1,17.28]
[1728523057376,0.12502,139.13,139.12,20.877]
[1728523057964,5.28,139.15,139.12,17.28]
[1728523058167,0.12502,139.19,139.12,17.28]
[1728523058471,5.28,139.18,139.13,1.3281]
[1728523058776,5.28,139.18,139.15,3.5961]
[1728523058988,3.72042,139.19,139.15,3.5961]
[1728523059181,9.00042,139.19,139.15,3.5961]
[1728523059385,0.12502,139.19,139.16,3.596]
[1728523059770,0.12502,139.19,139.14,17.28]
[1728523059979,0.12502,139.19,139.17,3.5957]
[1728523060475,0.12502,139.19,139.16,17.28]
[1728523060676,0.12502,139.19,139.14,17.28]
[1728523061071,0.12502,139.19,139.15,3.596]
[1728523061776,3.72032,139.19,139.15,3.596]
[1728523062675,0.12502,139.19,139.14,17.28]
[1728523062877,0.12502,139.19,139.16,3.5959]
[1728523066777,0.12502,139.19,139.17,3.5956]
[1728523068478,0.12502,139.19,139.17,14.6456]
[1728523068673,0.12502,139.19,139.17,11.05]
[1728523068882,3.72022,139.19,139.16,11.05]
[1728523069996,3.72022,139.19,139.16,14.6459]
[1728523070285,0.12502,139.19,139.16,14.6459]
[1728523072175,0.12502,139.19,139.17,14.6456]
[1728523072584,0.12502,139.19,139.18,11.05]
[1728523073488,0.12502,139.19,139.18,14.6455]
[1728523075290,99.99267647,139.23,139.21,3.5945]
[1728523075501,99.99267647,139.23,139.22,11.05]
[1728523075993,99.99267647,139.23,139.21,14.6445]
[1728523076491,0.12502,139.25,139.21,3.5945]
[1728523076492,5.24,139.24,139.21,3.5945]
[1728523077289,0.12502,139.25,139.2,17.26]
[1728523077485,5.36502,139.25,139.22,3.5943]
[1728523077996,3.5946,139.22,139.18,3.5954]
[1728523078289,5.36502,139.25,139.18,17.26]
[1728523078489,3.5941,139.24,139.2,3.5948]
[1728523078694,3.5941,139.24,139.18,17.26]
[1728523078884,5.36502,139.25,139.2,17.26]
[1728523079285,8.95892,139.25,139.21,3.5946]
[1728523079697,3.5942,139.23,139.2,3.5948]
[1728523079997,22.62502,139.25,139.18,17.26]
[1728523080185,22.62502,139.25,139.16,17.26]
[1728523080383,3.5948,139.21,139.18,3.5954]
[1728523080691,3.5948,139.21,139.16,17.26]
[1728523080889,5.24,139.22,139.16,17.26]
[1728523081500,5.24,139.22,139.18,3.5953]
[1728523081786,3.5949,139.21,139.16,17.26]
[1728523081993,5.24,139.22,139.16,17.26]
[1728523082391,3.595,139.2,139.17,3.5956]
[1728523083295,3.5948,139.21,139.16,17.26]
[1728523083889,3.5948,139.21,139.18,3.5953]
[1728523086101,5.24,139.22,139.16,17.26]
[1728523086293,3.5952,139.2,139.14,26.6199]
[1728523087496,3.5952,139.2,139.17,3.5956]
[1728523091799,5.24,139.22,139.16,17.26]
[1728523092703,5.24,139.22,139.14,26.6199]
[1728523093102,3.5951,139.2,139.14,26.6199]
[1728523093293,5.24,139.22,139.14,26.6199]
[1728523093494,3.5951,139.2,139.17,3.5957]
[1728523093891,8.92316545,139.22,139.14,25.1975]
[1728523094091,3.5951,139.2,139.17,3.5957]
[1728523094901,26.18316545,139.22,139.14,19.9575]
[1728523095209,17.26,139.18,139.13,0.12502]
[1728523095501,3.5962,139.16,139.13,0.12502]
[1728523095705,5.24,139.17,139.13,0.12502]
[1728523095905,8.79985401,139.17,139.13,0.12502]
[1728523096103,3.5964,139.15,139.13,0.12502]
[1728523096306,8.79985401,139.17,139.13,0.12502]
[1728523096607,3.596,139.16,139.13,0.12502]
[1728523096817,5.24,139.17,139.13,0.12502]
[1728523097304,3.596,139.16,139.13,0.12502]
[1728523097512,5.24,139.17,139.13,0.12502]
[1728523097906,3.5965,139.14,139.13,0.12502]
[1728523098302,5.24,139.17,139.13,0.12502]
[1728523098612,3.5964,139.15,139.13,0.12502]
[1728523099316,3.5965,139.14,139.13,0.12502]
[1728523100203,5.24,139.17,139.13,0.12502]
[1728523100507,3.5963,139.15,139.13,0.12502]
[1728523100909,5.24,139.17,139.13,0.12502]
[1728523101110,3.5961,139.16,139.13,0.12502]
[1728523102308,5.24,139.17,139.13,0.12502]
[1728523102507,14.6563,139.15,139.13,0.12502]
[1728523102910,11.06,139.15,139.13,0.12502]
[1728523103225,5.24,139.17,139.14,11.06]
[1728523103407,5.24,139.17,139.14,3.5964]
[1728523104312,8.8359,139.17,139.13,14.78172]
[1728523105807,3.5959,139.17,139.14,3.5965]
[1728523106003,5.36,139.17,139.14,11.06]
[1728523107518,5.36,139.17,139.15,3.5962]
[1728523108717,8.9558,139.17,139.14,14.6564]
[1728523108921,8.9558,139.17,139.13,11.18502]
[1728523109719,8.9558,139.17,139.13,14.78162]
[1728523109919,8.9558,139.17,139.13,11.18502]
[1728523110315,8.9558,139.17,139.14,3.5965]
[1728523111533,20.0158,139.17,139.14,3.5965]
[1728523111829,14.6558,139.17,139.14,3.5965]
[1728523112129,3.596,139.16,139.13,14.78172]
[1728523113429,3.5963,139.15,139.13,0.12502]
[1728523114337,14.6561,139.16,139.13,3.72182]
[1728523115835,3.5961,139.16,139.13,14.78182]
[1728523118742,11.06,139.17,139.13,11.18502]
[1728523118927,11.06,139.17,139.15,3.5962]
[1728523119342,11.06,139.17,139.13,11.18502]
[1728523119539,14.6558,139.17,139.13,11.18502]
[1728523120036,23.65981402,139.18,139.15,3.5961]
[1728523120236,20.06421402,139.18,139.15,3.5961]
[1728523120929,20.06421402,139.18,139.13,11.18502]
[1728523121135,3.5958,139.17,139.14,3.5963]
[1728523122441,14.6558,139.17,139.14,3.5963]
[1728523125543,3.5958,139.17,139.14,3.5963]
[1728523127444,3.5961,139.16,139.13,3.72172]
[1728523127648,11.06,139.14,139.13,0.12502]
[1728523127944,14.6565,139.14,139.13,0.12502]
[1728523129840,3.5965,139.14,139.13,0.12502]
[1728523131743,16.42,139.15,139.13,0.12502]
[1728523132336,5.36,139.15,139.13,0.12502]
[1728523132738,5.36,139.15,139.13,3.72162]
[1728523134649,14.69538506,139.16,139.13,3.72162]
[1728523135347,18.29148506,139.16,139.13,3.72162]
[1728523136842,11.06,139.15,139.13,0.12502]
[1728523137349,3.5965,139.14,139.13,0.12502]
[1728523142154,3.5964,139.15,139.13,0.12502]
[1728523143252,14.69538506,139.16,139.13,0.12502]
[1728523143457,3.63538506,139.16,139.13,11.18502]
[1728523143755,5.28,139.17,139.13,11.18502]
[1728523143955,3.5959,139.17,139.14,3.5964]
[1728523149371,14.6559,139.17,139.14,3.5964]
[1728523150357,3.596,139.16,139.14,3.5964]
[1728523151451,3.5965,139.14,139.13,0.12502]
[1728523151658,14.6565,139.14,139.13,0.12502]
[1728523156568,3.5965,139.14,139.13,0.12502]
[1728523156770,3.5964,139.15,139.13,0.12502]
[1728523156969,2.7278,139.17,139.15,3.5961]
[1728523156970,11.06,139.17,139.15,3.5961]
[1728523157170,5.28,139.16,139.14,11.06]
[1728523158469,5.28,139.16,139.14,14.6564]
[1728523159471,5.28,139.16,139.14,11.06]
[1728523160258,5.28,139.16,139.14,14.6564]
[1728523162057,5.28,139.16,139.14,11.06]
[1728523162366,5.28,139.16,139.15,14.6562]
[1728523162575,14.6555,139.18,139.15,14.6562]
[1728523162764,94.75560111,139.21,139.17,11.06]
[1728523162965,3.595,139.2,139.18,11.06]
[1728523163567,3.595,139.2,139.17,14.6556]
[1728523165082,94.75560111,139.21,139.17,14.6556]
[1728523165083,98.35040111,139.21,139.17,11.06]
[1728523165368,5.38502,139.25,139.2,11.06]
[1728523165576,11.06,139.24,139.2,11.06]
[1728523166471,3.5942,139.23,139.2,14.6549]
[1728523168372,3.5942,139.23,139.2,11.06]
[1728523172083,3.5942,139.23,139.2,14.6549]
[1728523174678,3.5941,139.24,139.21,11.06]
[1728523174887,3.5941,139.24,139.21,14.6547]
[1728523175278,3.71882,139.25,139.21,14.6547]
[1728523176883,3.71882,139.25,139.22,14.6544]
[1728523177078,3.71882,139.25,139.22,11.06]
[1728523177286,11.18502,139.25,139.21,11.06]
[1728523177481,11.06,139.24,139.19,5.26]
[1728523177686,11.06,139.24,139.2,5.27815752]
[1728523177890,3.5944,139.23,139.19,16.32]
[1728523178089,3.5944,139.23,139.2,5.27819258]
[1728523178289,3.5944,139.23,139.19,14.6551]
[1728523178781,3.5945,139.22,139.19,14.6551]
[1728523179189,11.06,139.24,139.19,11.06]
[1728523179384,11.06,139.23,139.18,11.06]
[1728523179684,16.32,139.23,139.19,5.27592824]
[1728523179884,3.5951,139.2,139.18,11.06]
[1728523180080,11.06,139.21,139.17,11.06]
[1728523180284,11.06,139.21,139.18,5.27559055]
[1728523180485,3.595,139.2,139.17,11.06]
[1728523180787,3.595,139.2,139.18,5.27372677]
[1728523180995,3.595,139.2,139.17,11.06]
[1728523181890,3.595,139.2,139.18,11.06]
[1728523182492,3.595,139.2,139.17,11.06]
[1728523183898,3.5943,139.23,139.19,11.06]
[1728523184203,3.5943,139.23,139.21,11.06]
[1728523187000,3.5943,139.23,139.2,11.06]
[1728523188301,3.5943,139.23,139.15,6.6401]
[1728523188302,3.594,139.24,139.21,14.6545]
[1728523190297,16.44502,139.25,139.2,11.06]
[1728523190503,3.5944,139.23,139.2,14.6548]
[1728523191517,3.5944,139.23,139.21,11.06]
[1728523192909,3.5941,139.24,139.21,11.06]
[1728523193203,5.38502,139.25,139.21,11.06]
[1728523193408,3.594,139.24,139.21,11.06]
[1728523193799,5.38502,139.25,139.21,11.06]
[1728523194001,5.38502,139.25,139.23,11.06]
[1728523194306,5.38502,139.25,139.2,1.4481]
[1728523194509,3.5941,139.24,139.21,14.6546]
[1728523194911,5.38502,139.25,139.21,11.06]
[1728523195112,3.5941,139.24,139.21,11.06]
[1728523196711,3.5947,139.23,139.21,11.06]
[1728523196914,5.38502,139.25,139.21,11.06]
[1728523197711,11.06,139.24,139.2,1.4481]
[1728523197907,11.06,139.24,139.2,12.5081]
[1728523198212,3.5951,139.21,139.18,14.6557]
[1728523198412,16.3,139.22,139.14,4.1552]
[1728523198615,16.3,139.22,139.17,11.06]
[1728523198804,3.5955,139.2,139.17,11.06]
[1728523199008,11.06,139.21,139.16,11.06]
[1728523199211,11.06,139.19,139.14,4.1552]
[1728523199409,3.5969,139.14,139.13,0.12502]
[1728523199713,11.06,139.16,139.13,0.12502]
[1728523199907,11.06,139.16,139.13,11.18502]
[1728523200210,3.5965,139.16,139.13,11.18502]
[1728523200412,11.06,139.18,139.14,11.06]
[1728523200610,11.06,139.17,139.13,11.18502]
[1728523201115,3.5968,139.15,139.13,11.18502]
[1728523202005,11.06,139.17,139.13,11.18502]
[1728523202202,14.6569,139.14,139.13,0.12502]
[1728523204818,11.06,139.14,139.13,0.12502]
[1728523205813,14.6569,139.14,139.13,0.12502]
[1728523207219,3.5969,139.14,139.13,0.12502]
[1728523210715,14.6569,139.14,139.13,0.12502]
[1728523211021,14.658,139.1,139.08,1.416]
[1728523211211,14.658,139.1,139.07,0.12502]
[1728523211212,11.06,139.09,139.07,0.12502]
[1728523211516,14.658,139.1,139.07,0.12502]
[1728523212318,3.598,139.1,139.07,11.18502]
[1728523214716,14.658,139.1,139.07,11.18502]
[1728523215020,11.06,139.09,139.07,0.12502]
[1728523215322,3.5984,139.08,139.07,0.12502]
[1728523216725,14.62590415,139.08,139.01,0.12502]
[1728523217029,14.6599,139.03,139.01,0.12502]
[1728523218318,14.6596,139.04,139.01,0.12502]
[1728523218717,3.5996,139.04,139.01,14.78512]
[1728523220417,11.06,139.04,139.01,0.12502]
[1728523220615,3.5997,139.03,139.01,0.12502]
[1728523222219,14.6596,139.04,139.01,0.12502]
[1728523222422,3.5996,139.04,139.01,0.12502]
[1728523224212,3.5996,139.04,139.01,3.72522]
[1728523228330,17.28,139.06,139.01,0.12502]
[1728523228526,8.8593,139.05,139.02,3.5999]
[1728523228727,8.8593,139.05,139.01,0.12502]
[1728523228928,8.8593,139.05,139.01,3.72512]
[1728523229233,8.8593,139.05,139.01,0.12502]
[1728523229626,3.5995,139.04,139.01,0.12502]
[1728523230629,3.5995,139.04,139.01,3.72512]
[1728523236538,5.26,139.05,139.01,0.12502]
[1728523237838,3.5996,139.04,139.01,3.72512]
[1728523238736,8.8593,139.05,139.02,3.5998]
[1728523239135,5.26,139.05,139.02,3.5998]
[1728523240439,3.5995,139.04,139.02,3.5998]
[1728523241032,5.26,139.05,139.01,0.12502]
[1728523241946,3.5994,139.05,139.02,3.5999]
[1728523242938,3.5995,139.04,139.02,3.5999]
[1728523243844,3.5995,139.04,139.01,3.72512]
[1728523244043,5.26,139.06,139.01,0.12502]
[1728523244044,3.5993,139.05,139.01,0.12502]
[1728523244343,5.26,139.07,139.01,17.40502]
[1728523244543,3.599,139.06,139.03,11.05]
[1728523245236,16.31,139.07,139.03,11.05]
[1728523245237,19.9088,139.07,139.03,11.05]
[1728523245744,19.9088,139.07,139.04,3.5994]
[1728523248339,8.8585,139.08,139.05,3.599]
[1728523248531,3.5985,139.08,139.05,3.599]
[1728523249843,16.31,139.09,139.04,11.05]
[1728523250039,19.9082,139.09,139.06,3.5987]
[1728523250344,14.6482,139.09,139.06,3.5987]
[1728523251138,5.26,139.1,139.05,11.05]
[1728523251343,11.05,139.1,139.07,3.5985]
[1728523252142,14.6481,139.1,139.07,3.5985]
[1728523252838,11.05,139.09,139.05,11.05]
[1728523253042,14.6483,139.09,139.06,3.5988]
[1728523261750,11.05,139.09,139.06,3.5987]
[1728523262445,14.6482,139.09,139.06,3.5987]
[1728523264745,14.6482,139.09,139.05,11.05]
[1728523264746,11.05,139.09,139.05,11.05]
[1728523264945,11.05,139.09,139.06,3.5989]
[1728523265650,14.6482,139.09,139.06,3.5989]
[1728523266666,14.6482,139.09,139.06,3.5987]
[1728523267855,14.6482,139.09,139.07,5.26892316]
[1728523268257,14.6482,139.09,139.06,3.5987]
[1728523268556,14.6482,139.09,139.07,5.27160958]
[1728523268756,14.6482,139.09,139.06,3.5987]
[1728523268952,14.6482,139.09,139.07,5.27110103]
[1728523269151,14.6482,139.09,139.08,5.27122037]
[1728523269457,14.6482,139.09,139.06,3.5987]
[1728523269752,14.6482,139.09,139.08,5.2711294]
[1728523269947,14.6482,139.09,139.06,3.5989]
[1728523270152,14.6482,139.09,139.07,5.27159645]
[1728523270359,14.6482,139.09,139.08,5.27159645]
[1728523271655,18.19178894,139.09,139.08,5.27159645]
[1728523271851,18.19178894,139.09,139.01,0.12502]
[1728523271852,3.5995,139.04,139.03,5.27608481]
[1728523272057,11.05,139.04,139.01,0.12502]
[1728523272361,14.65,139.02,139.01,0.12502]
[1728523273062,18.16767867,139.02,139.01,0.12502]
[1728523290377,14.65,139.02,139.01,0.12502]
[1728523290673,3.6,139.02,139.01,0.12502]
[1728523290858,11.05,139.03,139.01,0.12502]
[1728523291056,5.26,139.03,139.01,0.12502]
[1728523291256,11.05,139.04,139.01,3.72502]
[1728523291667,16.31,139.05,139.03,3.5996]
[1728523292564,19.9089,139.07,139.04,3.5995]
[1728523293065,8.8583,139.09,139.06,3.5988]
[1728523293264,5.26,139.09,139.06,11.05]
[1728523293466,11.05,139.1,139.06,11.05]
[1728523294264,14.6481,139.1,139.06,11.05]
[1728523295368,14.6481,139.1,139.06,14.6488]
[1728523297979,5.26,139.11,139.06,11.05]
[1728523298183,19.9077,139.11,139.08,3.5982]
[1728523298479,5.26,139.11,139.08,11.05]
[1728523298870,111.12006605,139.12,139.08,11.05]
[1728523299463,114.71756605,139.12,139.09,3.5981]
[1728523300171,111.12006605,139.12,139.08,14.6483]
[1728523300370,3.5977,139.11,139.08,14.6483]
[1728523300669,14.6477,139.11,139.08,3.5983]